Workbook

Sheet 1
A1: Школа | B1: МБОУ "Большекустовская СОШ" | E1: Отд./корп | I1: День | J1: 2021-05-24
A3: Прием пищи | B3: Раздел | C3: № рец. | D3: Блюдо | E3: Выход, г | F3: Цена | G3: Калорийность | H3: Белки | I3: Жиры | J3: Углеводы
A4: Завтрак | B4: гор.блюдо | C4: 279/18 | D4: Запеканка творожная с повидлом | E4: 150 | F4: =27.67/200*150 -> 20.75 | G4: =461.81/200*150 -> 346 | H4: =43.9/200*150 -> 33 | I4: =15.7/200*150 -> 12 | J4: =36.23/200*150 -> 27
B5: гор.напиток | C5: 459/18 | D5: Чай с сахаром | E5: 200 | F5: 1.94 | G5: 41 | H5: 0 | I5: 0 | J5: 10
B6: хлеб | C6: 108/2013 | D6: Хлеб пшеничный | E6: 30 | F6: =28/0.6*0.03 -> 1.40 | G6: =257.84/110*30 -> 70 | H6: =8.36/110*30 -> 2 | I6: =0.88/110*30 -> 0 | J6: =54.12/110*30 -> 15
A9: Завтрак 2 | B9: фрукты | C9: 82/18 | D9: Мандарин | E9: 100 | F9: 12.40 | G9: 38 | H9: 1 | I9: 0 | J9: 8
A12: Обед | B12: закуска | C12: 148/18 | D12: Салат из огурцов свежих | E12: 80 | F12: =4.83/60*80+0.31 -> 6.75 | G12: =13.13/60*80 -> 18 | H12: =0.42/60*80 -> 1 | I12: =3.65/60*80 -> 5 | J12: =1.14/60*80 -> 2
B13: 1 блюдо
B14: 2 блюдо | C14: 56/18 | D14: Сосиски молочные отварные | E14: 100 | F14: =16.88/70*100 -> 24.11 | G14: =98.28*2/70*100 -> 281 | H14: =8.16/70*100 -> 12 | I14: =8.12/70*100 -> 12 | J14: =20.28/70*100 -> 29
B15: гарнир | C15: 233/18 | D15: Каша пшенная | E15: 150 | F15: 7.08 | G15: =207.21/200*150 -> 155 | H15: =6/200*150 -> 5 | I15: =7.37/200*150 -> 6 | J15: =29.24/200*150 -> 22
B16: сладкое | C16: 487/18 | D16: Компот из яблок с лимоном | E16: 200 | F16: 5.55 | G16: 62 | H16: 0 | I16: 0 | J16: 15
B17: хлеб бел. | C17: 108/2013 | D17: Хлеб пшеничный | E17: 100 | F17: 4.67 | G17: 258 | H17: 8 | I17: 1 | J17: 54
B18: хлеб черн.
